Cogmind - Beta 13 @@@ ROGUE MODE // 2024.04.25 @ 21:01:04 Player: Bace Troncons Result: Destroyed by Y-54 Guardian with Gatling Laser Performance ------------- Evolutions (3) 1500 Regions Visited (5) 1000 Robots Destroyed (64) 320 Value Destroyed (1847) 1847 Prototype IDs (8) 160 Alien Tech Used (0) 0 Bonus (52) 52 TOTAL SCORE: 4879 Bonus ------- Follower Combat Kills 168 Friendly Fire -116 Cogmind --------- Core Integrity 0/700 Matter 290/300 Energy 99/100 System Corruption 28% Temperature Cool (12) Movement Core (150) Ox2 Location -7/Factory Parts ------- > --- POWER (1) -------- (None) > --- PROPULSION (4) --- (None) > --- UTILITY (6) ------ Terrain Scan Processor Advanced Terrain Scan Processor Improved Melee Analysis Suite > --- WEAPON (2) ------- Power Maul Great Axe > --- INVENTORY (5) ---- Matter Filter Heavy Assault Rifle Advanced Assault Cannon Rocket Array Improved Datajack Peak State ------------ > --- POWER ------------ (None) > --- PROPULSION ------- Armored Huge Wheel Gravmag System Xenon Bombardment Thruster > --- UTILITY ---------- Advanced Weight Redist. System Terrain Scan Processor Advanced Terrain Scan Processor Transport Network Coupler Improved Melee Analysis Suite Recoil Stabilizer > --- WEAPON ----------- Power Maul Chainsword > --- INVENTORY -------- Improved Airjet System Shield Advanced Assault Cannon Rocket Array Improved Datajack [Rating: 43] Favorites ----------- Power Ion Engine Engine Ion Engine Power Core Light Nuclear Core Propulsion Light Treads Treads Light Treads Leg Improved Carbon-fiber Leg Wheel Compact Wheel Hover Unit Gravmag System Flight Unit Improved Flight Unit Utility Improved Targeting Computer Device Improved Shield Generator Processor Improved Targeting Computer Weapon Light Cannon Energy Gun EM Pulse Gun Ballistic Gun Autogun Ballistic Cannon Light Cannon Launcher Grenade Launcher Impact Weapon Power Maul Slashing Weapon Chainsword Build | -11 -10 -10 -9 -8 -7 ------- Run | Yrd Mat Min Mat Mat Fac Slots Evolved 6 | . . . 2 2 2 Power . | . . . . . . Propulsion 2 | . . . . 2 . Utility 4 | . . . 2 . 2 Weapon . | . . . . . . Parts Attached 63 | 5 10 1 5 7 35 Power 8 | 1 2 . . 1 4 Engine 4 | 1 1 . . 1 1 Core 4 | . 1 . . . 3 Reactor . | . . . . . . Propulsion 25 | 2 3 . 2 3 15 Treads 5 | 2 3 . . . . Leg 3 | . . . . . 3 Wheel 6 | . . . . . 6 Hover 3 | . . . . . 3 Flight 8 | . . . 2 3 3 Utility 14 | . 2 . 2 . 10 Device 6 | . . . . . 6 Storage . | . . . . . . Processor 8 | . 2 . 2 . 4 Hackware . | . . . . . . Protection . | . . . . . . Artifact . | . . . . . . Weapon 16 | 2 3 1 1 3 6 Energy Gun 1 | 1 . . . . . Energy Cannon . | . . . . . . Ballistic Gun 6 | 1 2 . 1 . 2 Ballistic Cannon 2 | . 1 . . 1 . Launcher 1 | . . 1 . . . Special Weapon . | . . . . . . Impact Weapon 4 | . . . . 2 2 Slashing Weapon 2 | . . . . . 2 Piercing Weapon . | . . . . . . Special Melee Weapon . | . . . . . . Unidentified Prototypes 2 | . . . 1 . 1 Parts Lost 30 | . 2 . 1 6 21 Power 5 | . 1 . . 1 3 Propulsion 12 | . . . . 3 9 Utility 8 | . . . . . 8 Weapon 5 | . 1 . 1 2 1 Highest Loss Streak 5 | . 2 . 1 5 5 To Critical Strikes 1 | . . . . 1 . Average Slot Usage (%) 88 | . 96 99 97 80 72 Engine 6 | . 4 14 11 8 2 Core 3 | . 9 . . . 2 Treads 15 | . 28 28 12 . . Wheel 2 | . . . . . 7 Flight 3 | . . . 8 25 5 Device 3 | . . . . . 9 Processor 28 | . 27 28 43 36 25 Ballistic Gun 6 | . 19 . 3 7 . Ballistic Cannon 5 | . 6 14 9 2 . Launcher 3 | . . 13 7 . . Impact Weapon 3 | . . . . 1 10 Naked Turns . | . . . . . . Heaviest Build 24 | 9 11 11 11 12 24 Greatest Support 64 | 40 40 40 40 18 64 Greatest Overweight (x) 3 | . . . 2 1 3 Average Overweight (x) . | . . . . . . Largest Inventory Capacity 5 | 5 5 5 5 5 5 Average Capacity 5 | 5 5 5 5 5 5 Most Carried 5 | 5 5 4 5 5 5 Average Carried 4 | 3 4 3 3 3 4 Final Capacity 5 | 5 5 5 5 5 5 Final Carried 5 | 4 4 3 3 5 5 Class Distribution -------------------- 72% | Mutant 23% | Gladiator Dominant Class ---------------- Mutant | -10/Materials Mutant | -10/Mines Mutant | -9/Materials Sprinter | -8/Materials Gladiator | -7/Factory Resources | -11 -10 -10 -9 -8 -7 ----------- Run | Yrd Mat Min Mat Mat Fac Matter Collected 1712 | 210 650 144 104 139 465 Remotely . | . . . . . . Salvage Created 2225 | . 873 61 122 151 1018 Parts 111 | . 44 6 11 14 36 Haulers Intercepted 4 | . 2 . 1 . 1 Recyclers Shooed . | . . . . . . Parts Field Recycled . | . . . . . . Retrieved Matter . | . . . . . . Parts Self-Destructed . | . . . . . . Prevented . | . . . . . . Kills | -11 -10 -10 -9 -8 -7 ------- Run | Yrd Mat Min Mat Mat Fac Combat Hostiles Destroyed 50 | . 16 6 3 6 19 Melee 13 | . . . . . 13 Guns 15 | . 11 . 2 2 . Cannons 13 | . 5 3 1 4 . AOE 3 | . . 3 . . . Classes Destroyed 12 | . 5 3 1 1 2 Worker 2 | . . 1 . . 1 Hauler 4 | . 2 . 1 . 1 Recycler 4 | . 1 . . . 3 Operator 4 | . 2 . 1 1 . Watcher 2 | . 2 . . . . Swarmer 13 | . . . 3 4 6 Grunt 27 | . 16 2 1 . 8 Brawler 1 | . . . . . 1 Sentry 3 | . . . . 2 1 Demolisher 1 | . . 1 . . . Programmer 3 | . . . . . 3 Assembled 3 | . . 3 . . . Best Kill Streak 7 | . 4 5 3 6 7 Combat Bots Only 7 | . 4 5 3 6 7 Max Kills in Single Turn 2 | . 1 2 2 1 1 Gunslinging . | . . . . . . Exploded 2 | . . 2 . . . Melee 1 | . . . . . 1 Uniques/NPCs Destroyed . | . . . . . . Combat | -11 -10 -10 -9 -8 -7 -------- Run | Yrd Mat Min Mat Mat Fac Hostile Shots Fired 386 | . 69 11 17 82 207 Missed 133 | . 19 5 5 41 63 Damage Taken 3240 | . 648 94 130 545 1823 Core 975 | . 106 11 29 126 703 Absorbed by Shields 101 | . . . . . 101 Regen/Repaired (Parts) 50 | . 50 . . . . Core Remaining (%) 80 | 100 . 53 92 77 . Volleys Fired 123 | . 74 11 17 21 . Largest 2 | . 2 2 2 2 . Hottest 65 | . 58 65 58 62 . Shots Fired 204 | . 130 20 22 32 . Gun 127 | . 95 . 11 21 . Cannon 68 | . 35 11 11 11 . Launcher 9 | . . 9 . . . Special . | . . . . . . Kinetic 195 | . 130 11 22 32 . Thermal . | . . . . . . Explosive 9 | . . 9 . . . Electromagnetic . | . . . . . . Robot Hit Streak 18 | . 18 8 4 7 . Robot Miss Streak 3 | . 3 2 3 1 . Penetration Max . | . . . . . . Secondary Targets . | . . . . . . Shots Hit Robots 194 | . 97 8 10 25 54 Core Hits 77 | . 32 15 6 8 16 Critical Kills 3 | . 1 . . . 2 Critical Parts Destroyed 10 | . 2 . . 1 7 Critical Strikes 14 | . 4 . . 1 9 Destroy 4 | . 3 . . 1 . Blast 1 | . 1 . . . . Smash 9 | . . . . . 9 Melee Attacks 107 | . . . . 1 106 Impact 71 | . . . . 1 70 Slashing 36 | . . . . . 36 Piercing . | . . . . . . Sneak Attacks 5 | . . . . 1 4 Combat Hostiles . | . . . . . . Follow-up Attacks 6 | . . . . . 6 Damage Inflicted 5298 | . 1556 510 212 463 2557 Guns 1388 | . 1104 . 59 225 . Cannons 886 | . 452 124 153 157 . Explosions 386 | . . 386 . . . Melee 2634 | . . . . 81 2553 Ramming 4 | . . . . . 4 Kinetic 2274 | . 1556 124 212 382 . Thermal . | . . . . . . Explosive 386 | . . 386 . . . Electromagnetic . | . . . . . . Impact 1719 | . . . . 81 1638 Slashing 915 | . . . . . 915 Piercing . | . . . . . . Highest Corruption 28 | . . . . . 28 Average Corruption 21 | . . . . . 21 Corruption Purged . | . . . . . . Corruption Blocked . | . . . . . . Effects 68 | . . . . . 68 Message Errors 11 | . . . . . 11 Matter Fused 22 | . . . . . 22 Heat Flow Errors 7 | . . . . . 7 Energy Discharges 13 | . . . . . 13 Parts Rejected 2 | . . . . . 2 Parts Fused 3 | . . . . . 3 Data Loss (minor) 8 | . . . . . 8 Data Loss (major) 1 | . . . . . 1 Misdirections 1 | . . . . . 1 Overload Shots . | . . . . . . Overflow Damage 684 | . 12 4 4 71 593 Projectiles 16 | . 12 . 4 . . Explosions 4 | . . 4 . . . Melee 664 | . . . . 71 593 Knockbacks 10 | . 4 1 . . 5 Impact 4 | . . . . . 4 Kinetic 5 | . 4 1 . . . Secondary 1 | . . . . . 1 Self-Inflicted Damage 2 | . . . . . 2 Shots . | . . . . . . Rammed 2 | . . . . . 2 Targets Rammed 2 | . . . . . 2 Kicked . | . . . . . . Crushed . | . . . . . . Highest Temperature 233 | . 120 24 10 48 233 Average Temperature 34 | . 27 6 6 22 88 Received Heat Transfer 933 | . 363 36 27 117 390 Siege Activations . | . . . . . . Robots Corrupted . | . . . . . . Combat Hostiles . | . . . . . . Parts Fried 6 | . . . . 1 5 Impact Corruptions 24 | . . . . 2 22 Robots Melted . | . . . . . . Combat Hostiles . | . . . . . . Parts Melted . | . . . . . . Heat Transferred . | . . . . . . Parts Sabotaged . | . . . . . . Parts Stolen . | . . . . . . Parts Stripped . | . . . . . . Power Chain Reactions . | . . . . . . Alert | -11 -10 -10 -9 -8 -7 ------- Run | Yrd Mat Min Mat Mat Fac Peak Influence 339 | . 201 164 332 339 226 Initial 139 | . . 44 . 139 133 Average 85 | . 76 60 113 243 86 Maximum Alert Level 1 | . 1 . 1 1 1 Low Security (%) 87 | 100 98 100 87 38 74 Level 1 12 | . 1 . 12 61 25 Level 2 . | . . . . . . Level 3 . | . . . . . . Level 4 . | . . . . . . Level 5 . | . . . . . . High Security . | . . . . . . Max Security . | . . . . . . Squads Dispatched 16 | . 5 . 2 4 5 Investigation 6 | . 3 . . 2 1 Extermination 2 | . . . . . 2 Reinforcement 6 | . 2 . 2 2 . Assault . | . . . . . . Garrison 2 | . . . . . 2 Intercept . | . . . . . . Searches Triggered . | . . . . . . Construction Impeded . | . . . . . . Haulers Reinforced . | . . . . . . Active Scanning Responses . | . . . . . . Cargo Convoy Interrupts . | . . . . . . Stealth | -11 -10 -10 -9 -8 -7 --------- Run | Yrd Mat Min Mat Mat Fac Distress Signals 6 | . 2 1 3 . . Communications Jammed . | . . . . . . Distress Signals . | . . . . . . Times Spotted 94 | . 29 8 18 15 24 Peak Tracking Total 10 | . 4 10 5 8 5 Tactical Retreats 3 | . 1 . 2 . . Traps | -11 -10 -10 -9 -8 -7 ------- Run | Yrd Mat Min Mat Mat Fac Traps Triggered 6 | . 4 . . 2 . Indirectly . | . . . . . . Trap Hack Attempts . | . . . . . . Triggered . | . . . . . . Disarmed . | . . . . . . Reprogrammed . | . . . . . . Reused . | . . . . . . Traps Extracted . | . . . . . . Installed . | . . . . . . Triggered . | . . . . . . Machines | -11 -10 -10 -9 -8 -7 ---------- Run | Yrd Mat Min Mat Mat Fac Machines Disabled 2 | . 2 . . . . Max in Single Turn 1 | . 1 . . . . Machines Repaired . | . . . . . . Machines Dismantled . | . . . . . . Machines Sabotaged . | . . . . . . Overloaded Fab Kills . | . . . . . . Hacking | -11 -10 -10 -9 -8 -7 --------- Run | Yrd Mat Min Mat Mat Fac Machines Accessed 19 | . 5 1 1 2 10 Terminals 11 | . 4 1 1 2 3 Fabricators 2 | . . . . . 2 Repair Stations 3 | . 1 . . . 2 Recycling Units 1 | . . . . . 1 Scanalyzers 2 | . . . . . 2 Garrison Access . | . . . . . . Total Hacks 49 | . 12 2 1 4 30 Successful 21 | . 5 . 1 2 13 Failed 28 | . 7 2 . 2 17 Catastrophic 5 | . 1 1 . 1 2 Database Lockouts . | . . . . . . Manual 7 | . 4 2 . 1 . Terminals 26 | . 9 2 1 4 10 Fabricators 5 | . . . . . 5 Repair Stations 8 | . 3 . . . 5 Recycling Units 2 | . . . . . 2 Scanalyzers 8 | . . . . . 8 Garrison Access . | . . . . . . Terminal Hacks 7 | . 3 . 1 2 1 Prototype ID Bank 3 | . 2 . 1 . . Branch Access Points 2 | . 1 . . 1 . Alert Level 1 | . . . . 1 . Locate Traps 1 | . . . . . 1 Fabricator Hacks 1 | . . . . . 1 Network Status 1 | . . . . . 1 Repair Station Hacks 3 | . 2 . . . 1 Scan Component 2 | . 1 . . . 1 Repair 1 | . 1 . . . . Recycling Unit Hacks 2 | . . . . . 2 Report Inventory 1 | . . . . . 1 Retrieve Components 1 | . . . . . 1 Scanalyzer 8 | . . . . . 8 Insert Component 4 | . . . . . 4 Analyze 4 | . . . . . 4 Garrison Access Hacks . | . . . . . . Unauthorized Hacks . | . . . . . . Terminals . | . . . . . . Fabricators . | . . . . . . Repair Stations . | . . . . . . Recycling Units . | . . . . . . Scanalyzers . | . . . . . . Garrison Access . | . . . . . . Data Cores Recovered 1 | . 1 . . . . Used . | . . . . . . Hacking Detections 16 | . 4 1 . 2 9 Full Trace Events 1 | . . . . . 1 Feedback Events . | . . . . . . Feedback Blocked . | . . . . . . Robot Schematics Acquired . | . . . . . . Robots Built . | . . . . . . Authchips . | . . . . . . Time . | . . . . . . Total Robot Build Rating . | . . . . . . Part Schematics Acquired 4 | . . . . . 4 Parts Built . | . . . . . . Authchips . | . . . . . . Time . | . . . . . . Total Part Build Rating . | . . . . . . Parts Repaired 1 | . 1 . . . . Time 26 | . 26 . . . . Parts Recycled . | . . . . . . Recycled Matter . | . . . . . . Retrieved Matter . | . . . . . . Retrieved Components 7 | . . . . . 7 Parts Scanalyzed 4 | . . . . . 4 Part Schematics Acquired 4 | . . . . . 4 Parts Damaged . | . . . . . . Bothacking | -11 -10 -10 -9 -8 -7 ------------ Run | Yrd Mat Min Mat Mat Fac Used RIF Installer . | . . . . . . Robots Hacked . | . . . . . . Non-combat . | . . . . . . Combat . | . . . . . . Robot Hacks Applied . | . . . . . . Relay Couplers Released . | . . . . . . Fabnet Peak Effective % . | . . . . . . Robots Rewired . | . . . . . . Allies Hacked . | . . . . . . Hacks Repelled . | . . . . . . Allies | -11 -10 -10 -9 -8 -7 -------- Run | Yrd Mat Min Mat Mat Fac Total Allies 3 | . . 3 . . . Largest Group 3 | . . 3 3 . . Highest-Rated Group 40 | . . 40 40 . . Highest-Rated Ally 16 | . . 16 16 . . Total Orders . | . . . . . . Ally Attacks 45 | . . . 45 . . Total Damage 475 | . . . 475 . . Kills 10 | . . . 10 . . Allies Corrupted . | . . . . . . Allies Melted . | . . . . . . Intel | -11 -10 -10 -9 -8 -7 ------- Run | Yrd Mat Min Mat Mat Fac Robot Analysis Total . | . . . . . . Derelict Logs Recovered 2 | . . 2 . . . Drone Launches . | . . . . . . Drone Recoveries . | . . . . . . Exploration | -11 -10 -10 -9 -8 -7 ------------- Run | Yrd Mat Min Mat Mat Fac Turns Passed 4378 | 85 1337 887 392 180 1497 Spaces Moved 2783 | 49 660 533 273 242 1026 Core 40 | 5 . . . . 35 Treads 1365 | 44 660 533 128 . . Legs 100 | . . . . . 100 Wheels 484 | . . . . . 484 Hover 282 | . . . . . 282 Flight 512 | . . . 145 242 125 Fastest Speed 29 | 50 160 160 37 29 37 Average Speed 124 | 148 160 160 112 38 106 Slowest Speed 205 | 160 160 160 180 112 205 Overloaded Moves . | . . . . . . Propulsion Burnouts . | . . . . . . Robots Hopped 1 | . . . . 1 . Cave-ins Triggered 1 | . . . . . 1 Exploration Rate (%) 45 | 5 92 92 31 26 25 Regions Visited 5 Branch Regions 1 Pre-discovered Areas 1 | . . 1 . . . Known Exits Taken 3 | . 1 . 1 1 . Unknown Exits Taken 2 | 1 . 1 . . . Scrap Searched 1 | . . 1 . . . Spaces Dug 40 | . . 13 . . 27 Terrain Destroyed 104 | . . 77 . . 27 Melee 27 | . . . . . 27 Projectile . | . . . . . . AOE 77 | . . 77 . . . Terrain Rammed . | . . . . . . Walls Destroyed . | . . . . . . Machines Disabled . | . . . . . . Actions | -11 -10 -10 -9 -8 -7 --------- Run | Yrd Mat Min Mat Mat Fac Total 3320 | 59 832 547 335 290 1257 Wait 207 | 1 74 3 34 18 77 Move 2776 | 48 659 532 272 239 1026 Hop 1 | . . . . 1 . Pick Up 19 | 5 5 . 1 2 6 Fast Attach 51 | 4 5 . 4 6 32 Attach 7 | 1 1 1 1 1 2 Detach 7 | . . . 3 1 3 Swap 5 | . 4 . . . 1 Drop 31 | . 10 . 3 . 18 Fire 123 | . 74 11 17 21 . Melee 91 | . . . . 1 90 Ram 2 | . . . . . 2 Kick . | . . . . . . Crush . | . . . . . . Escape Stasis . | . . . . . . Rewire . | . . . . . . Trap . | . . . . . . Miscellaneous . | . . . . . . Route ------- -11/Scrapyard -10/Materials (discovered 5 exits: *Mat x3 / *Min x2) -10/Mines (discovered 2 exits: *Mat x2) -9/Materials (discovered 2 exits: *Mat / [*Min]) -8/Materials -7/Factory (discovered 3 exits: *Fac / [*Low x2]) History --------- Turn | Location | Event 10 | -11/Scrapyard | Discovered new exit (range 16) 86 | -11/Scrapyard | Entered Materials 252 | -10/Materials | Discovered new exit (range 16) 301 | -10/Materials | Build established: Mutant 458 | -10/Materials | Discovered new exit (range 15) 539 | -10/Materials | Discovered new exit (range 6) 596 | -10/Materials | Identified exit to Mines 763 | -10/Materials | Discovered new exit (range 15) 939 | -10/Materials | Repaired Lgt. Treads 1060 | -10/Materials | Discovered new exit (range 15) 1423 | -10/Materials | Entered Mines 1424 | -10/Mines | Assembled infested the area 1429 | -10/Mines | Assisted by a Guerilla fighting off Assembled 1626 | -10/Mines | Learned location of Storage (-7) 2000 | -10/Mines | Found a hidden stash of uninstalled traps 2003 | -10/Mines | Learned 2 Materials zone layouts 2025 | -10/Mines | Discovered new exit (range 7) 2283 | -10/Mines | Assisted by bots powering up and referring to "LRC-V3" 2303 | -10/Mines | Discovered new exit (range 5) 2310 | -10/Mines | Entered Materials 2310 | -9/Materials | Accompanied by 3 allies 2310 | -9/Materials | Evolved 2 slots: Utility x2 2576 | -9/Materials | Discovered new exit (range 15) 2684 | -9/Materials | Discovered new exit (range 15) 2701 | -9/Materials | Identified exit to Materials 2702 | -9/Materials | Entered another Materials area 2702 | -8/Materials | Evolved 2 slots: Propulsion x2 2874 | -8/Materials | Discovered new exit (range 13) 2881 | -8/Materials | Identified exit to Factory 2882 | -8/Materials | Entered Factory 2882 | -7/Factory | Evolved 2 slots: Utility x2 2888 | -7/Factory | Lost 5 parts (3n2w) 2898 | -7/Factory | Discovered new exit (range 7) 2905 | -7/Factory | Identified exit to Factory 2962 | -7/Factory | System corruption reached 10% 2995 | -7/Factory | Lost 5 parts (2n3u) 3249 | -7/Factory | Found Prototype Launcher 3304 | -7/Factory | Discovered new exit (range 15) 3453 | -7/Factory | Discovered new exit (range 8) 3511 | -7/Factory | Identified Rocket Array 3529 | -7/Factory | Build established: Gladiator 3818 | -7/Factory | Crushed by falling debris 3874 | -7/Factory | Lost 4 parts (1p1n2u) 4212 | -7/Factory | Garrison activated, responded to threat 4290 | -7/Factory | Destroyed 7 combat bots 4295 | -7/Factory | Lost 4 parts (1p1n2u) 4308 | -7/Factory | Core integrity fell below 50% 4368 | -7/Factory | Core integrity fell below 20% 4379 | -7/Factory | Destroyed by Y-54 Guardian with Gatling Laser Last Messages --------------- 04304_ Dropped Adv. Weight Redist. System. 04309_ M DLA1=QLFYOPVM,6R724LS#2UF9D 04311_ Gravmag System destroyed. 04326_ System corrupted: Energy discharge (-43). 04343_ System corrupted: Energy discharge (-31). 04355_ VTOL Module destroyed. 04355_ Chainsword destroyed. 04362_ Mic. Nuclear Core destroyed. 04362_ Slammed into Y-54 Guardian. 04362_ Destabilizing: System interference. 04362_ Adv. Terrain Scan Processor temporarily disabled. 04362_ Terrain Scan Processor temporarily disabled. 04363_ System corrupted: Energy discharge (-30). 04363_ Slammed into Y-54 Guardian. 04367_ VTOL Module destroyed. 04370_ Acquired Great Axe. 04375_ U-05 Engineer destroyed. 04376_ Y-54 Guardian destroyed. Map ----- +----------------------------------------------------+ | ?????????? ????????# ## ] #?????? | | ????????###+###?????# ## #?????? | | #+####### #######+## ## #?????? | | ## # ###############?????? | | ## "T" # #???????????????????? | | ?# """ # #???????????????????? | | ?# # #???????????????????? | | ? [*########### #???????????????????? | | ??""""""!!#!% # #???????????????????? | | ? """"""=%+%[= # #???????????????????? | | ??# """""" %# [ # #???????????????????? | | ??# """"""**#!*"""" ""# #???????????????????? | | ??# =# """" F"# #???????????????????? | | ??# # """" "# #???????????????????? | | ??# # """" ""# #???????????????????? | | ### # # #???????????????????? | | ########### #???????????????????? | | !!!#?????????# #???????????????????? | | !!!#?????????# #???????????????????? | | !!!#?????????# #???????????????????? | | !#?????????# #???????????????????? | | #????????## ##??????????????????? | | #????????# #??????????????????? | | """""" #######+## #??????????????????? | | """""" =%! ! #??????????????????? | | """""" Y ! @ #??????????????????? | | """""" Y !%[ #??????????????????? | | ###### ! #??????????????????? | | #????# % #??????????????????? | | #########+#######???????????????? | | / % #???????????????? | | ?###+######### ### #???????????????? | | ?????????????#####?# #???????????????? | | ???????????????????# #???????????????? | | ???????????????????# #???????????????? | | ???????????????????# #???????????????? | | ???????????????????###############???????????????? | | | | | | | | | | | | | | | | | | | | | | | | | | | +----------------------------------------------------+ Best States ------------- Heat Dissipation 34 Energy Generation 16 Energy Capacity 290 Matter Stores 300 Matter Capacity 300 Sight Range 16 Robot Scan Range 15 Terrain Scan Density 285 Additional Mass Support 9 Melee Speed Boost 20 Evasion (%) 64 Targeting Accuracy 12 Melee Accuracy 6 Armor Integrity Analysis 30 Recoil Reduction 4 Item Schematics ----------------- Rocket Array | -7/Factory | Scanalyzed Imp. Datajack | -7/Factory | Scanalyzed Flak Gun | -7/Factory | Scanalyzed Recoil Stabilizer | -7/Factory | Scanalyzed Robot Schematics ------------------ None Fabricated ------------ Nothing Alien Tech Used ----------------- None Achievements -------------- Universal Adapter Challenges ------------ None Game ------ Seed LightpackAutogunWarhead Manual? 0 Play Time 00:54:20 Cumulative 40.5 hours Start 2024.04.24 @ 21:15:40 End 2024.04.25 @ 21:01:04 Sessions 1 Manual Loads 0 Difficulty Rogue Special Mode None Game No. 65 Rogue 65 Adventurer 0 Explorer 0 Win Type - Total 0 Types 0/0/0/0/0/0/0/0/0 Lore% 22 Gallery% 30 Achievement% 25 Wizard Run 0 Options --------- Layout 1 ASCII 0 Keyboard 1 Movement Numpad Keybinds 0 Fullscreen 1 Font 24/Smallcaps Map View 50x35 Zoom Use 0% Tactical HUD 1 Map Filters NONE Filters NONE Steam 1 RUN: 6be1fc81-2343-4b49-8533-d6ae15271ecc